fUST/lending_fUST_20250414
["ID","MTS","AMOUNT","RATE_DAILY","PERIOD"]
[357975346,1744636629150,-1140745.09060384,0.0004,30]
[357975347,1744636629176,-13165.90060724,0.0004,30]
[357975348,1744636629202,-200.0,0.0004,120]
[357975349,1744636629228,-200.0,0.0004,120]
[357975350,1744636629254,-164.56806492,0.0004,120]
[357975351,1744636629279,-323.91796944,0.0004,30]
[357975352,1744636629306,-20000.0,0.0004,120]
[357975353,1744636629331,-88430.56944331,0.0004,30]
[357975354,1744636629357,-3298.64051485,0.0004,60]
[357975355,1744636629384,-7696.82786798,0.0004,120]
[357975356,1744636629412,-200.0,0.0004,120]
[357975357,1744636629438,-410.51096741,0.0004,120]
[357975358,1744636629463,-1124.33405334,0.0004,120]
[357975359,1744636629488,-244.21446431,0.0004,120]
[357975360,1744636629513,-256.0,0.0004,120]
[357975361,1744636629542,-600.0,0.0004,60]
[357975362,1744636629568,-1000.0,0.0004,30]
[357975363,1744636629594,-2080.0,0.0004,30]
[357975364,1744636629621,-571.65,0.0004,30]
[357975365,1744636629648,-599.53,0.0004,30]
[357975366,1744636629674,-138596.31019253,0.0004,30]
[357975367,1744636629699,-511.1085626,0.0004,120]
[357975368,1744636629725,-160.0,0.0004,30]
[357975369,1744636629751,-151.0,0.0004,30]
[357975370,1744636629777,-200.0,0.0004,30]
[357975371,1744636629803,-160.0,0.0004,30]
[357975372,1744636629831,-200.0,0.00040031,120]
[357975373,1744636629858,-200.0,0.00040122,120]
[357975374,1744636629884,-200.0,0.00040296,120]
[357975375,1744636629912,-200.0,0.00040329,120]
[357975376,1744636629945,-200.0,0.00040808,120]
[357975377,1744636629971,-150.5,0.0004107,30]
[357975378,1744636629997,-150.5,0.0004107,30]
[357975379,1744636630022,-150.5,0.0004108,30]
[357975380,1744636630048,-150.5,0.0004108,30]
[357975381,1744636630073,-150.5,0.0004109,30]
[357975382,1744636630099,-150.5,0.0004109,30]
[357975383,1744636630125,-203.3,0.0004109,30]
[357975384,1744636630151,-188.0,0.00041095,120]
[357975385,1744636630177,-188.0,0.00041095,120]
[357975386,1744636630202,-188.0,0.00041095,120]
[357975387,1744636630227,-188.0,0.00041095,120]
[357975388,1744636630252,-188.0,0.00041095,120]
[357975389,1744636630277,-188.0,0.00041095,120]
[357975390,1744636630302,-188.0,0.00041095,120]
[357975391,1744636630327,-188.0,0.00041095,120]
[357975392,1744636630351,-188.0,0.00041095,120]
[357975393,1744636630376,-188.0,0.00041095,120]
[357975394,1744636630401,-188.0,0.00041095,120]
[357975395,1744636630425,-188.0,0.00041095,120]
[357975396,1744636630451,-188.0,0.00041095,120]
[357975397,1744636630477,-217.55181219,0.00041095,120]
[357975398,1744636630502,-500.0,0.00041095,120]
[357975399,1744636630530,-500.0,0.00041095,120]
[357975400,1744636630555,-500.0,0.00041095,120]
[357975401,1744636630581,-500.0,0.00041095,120]
[357975402,1744636630607,-500.0,0.00041095,120]
[357975403,1744636630633,-500.0,0.00041095,120]
[357975404,1744636630659,-500.0,0.00041095,120]
[357975405,1744636630686,-500.0,0.00041095,120]
[357975406,1744636630712,-500.0,0.00041095,120]
[357975407,1744636630738,-500.0,0.00041095,120]
[357975408,1744636630764,-566.86588292,0.00041095,120]
[357975409,1744636630791,-500.0,0.00041095,120]
[357975410,1744636630818,-500.0,0.00041095,120]
[357975411,1744636630964,-500.0,0.00041095,120]
[357975412,1744636630991,-500.0,0.00041095,120]
[357975413,1744636631017,-500.0,0.00041095,120]
[357975414,1744636631042,-527.10633953,0.00041095,120]
[357975415,1744636631067,-151.0,0.00041096,60]
[357975416,1744636631091,-151.0,0.00041096,60]
[357975417,1744636631116,-151.0,0.00041096,60]
[357975418,1744636631141,-271.0,0.00041096,60]
[357975419,1744636631167,-500.0,0.00041096,31]
[357975420,1744636631193,-500.0,0.00041096,31]
[357975421,1744636631219,-479.66447678,0.00041096,31]
[357975422,1744636631244,-164.40716409,0.00041096,31]
[357975423,1744636631271,-200.0,0.00041173,120]
[357975424,1744636631296,-250.0,0.000412,30]
[357975425,1744636631322,-250.0,0.000412,30]
[357975426,1744636631348,-250.0,0.000412,30]
[357975427,1744636631375,-200.0,0.00041337,120]
[357975428,1744636631402,-150.5,0.0004137,120]
[357975429,1744636631428,-265.05,0.0004137,120]
[357975430,1744636631454,-150.5,0.0004138,120]
[357975431,1744636631480,-150.5,0.0004138,120]
[357975432,1744636631507,-150.5,0.0004139,120]
[357975433,1744636631535,-150.5,0.0004139,120]
[357975434,1744636631563,-200.0,0.00041493,120]
[357975435,1744636631590,-1038.6,0.000416,30]
[357975436,1744636631617,-7426.02,0.000416,30]
[357975437,1744636631644,-137390.28,0.000417,30]
[357975438,1744636631671,-200.0,0.00041741,120]
[357975439,1744636631700,-200.0,0.00041772,120]
[357975440,1744636631729,-20000.0,0.00042,120]
[357975441,1744636631755,-300.0,0.00042,30]
[357975442,1744636631783,-200.0,0.00042162,120]
[357975443,1744636631810,-200.0,0.00042238,120]
[357975444,1744636631837,-200.0,0.00042597,120]
[357975445,1744636631864,-200.0,0.00042626,120]
[357975446,1744636631892,-200.0,0.00042662,120]
[357975447,1744636631920,-250.0,0.000427,30]
[357975448,1744636631947,-250.0,0.000427,30]
[357975449,1744636631980,-200.0,0.00042719,120]
[357975450,1744636632021,-200.0,0.0004288,120]
[357975451,1744636632061,-223.4719,0.000429,120]
[357975452,1744636632100,-170.18,0.000429,30]
[357975453,1744636632139,-424.00242902,0.00043,120]
[357975454,1744636632177,-815.97577,0.00043,120]
[357975455,1744636632219,-200.0,0.00043128,120]
[357975456,1744636632258,-200.0,0.00043227,120]
[357975457,1744636632299,-200.0,0.00043283,120]
[357975458,1744636632339,-200.0,0.00043303,120]
[357975459,1744636632373,-2500.43866121,0.000435,90]
[357975460,1744636632415,-1000.0,0.00043835,120]
[357975461,1744636632453,-1000.0,0.00043835,120]
[357975462,1744636632485,-429.8402181,0.00043835,120]
[357975463,1744636632526,-3513.32,0.00043835,120]
[357975464,1744636632560,-646.75354704,0.00043835,120]
[357975465,1744636632594,-50000.0,0.00043836,30]
[357975466,1744636632630,-500.0,0.00043989,120]
[357975467,1744636632663,-1824.0,0.00044,120]
[357975468,1744636632696,-1469.68107641,0.00044,30]
[357975469,1744636632729,-500.0,0.00044089,120]
[357975470,1744636632765,-200.0,0.00044097,120]
[357975471,1744636632800,-200.0,0.00044107,120]
[357975472,1744636632834,-200.0,0.00044174,120]
[357975473,1744636632870,-500.0,0.00044189,120]
[357975474,1744636632905,-500.0,0.00044289,120]
[357975475,1744636632939,-500.0,0.00044389,120]
[357975476,1744636632974,-500.0,0.00044489,120]
[357975477,1744636633007,-3132.37921117,0.000445,120]
[357975478,1744636633044,-382.2741133,0.0004455,120]
[357975479,1744636633078,-500.0,0.00044589,120]
[357975480,1744636633113,-500.0,0.00044689,120]
[357975481,1744636633148,-500.0,0.00044789,120]
[357975482,1744636633183,-1318925.16408647,0.000448,120]
[357975483,1744636637072,2198.29879424,0.00045363,30]
[357975484,1744636641896,-430470.34133268,0.000448,120]
[357975485,1744636641925,-35266.00742056,0.00044887,30]
[357975486,1744636641954,-500.0,0.00044889,120]
[357975487,1744636641981,-154.11577875,0.000449,120]
[357975488,1744636642008,-170.18,0.000449,30]
[357975489,1744636642035,-200.0,0.00044931,120]
[357975490,1744636642063,-3513.32,0.00044931,120]
[357975491,1744636642090,-500.0,0.00044989,120]
[357975492,1744636642116,-200.0,0.00045,30]
[357975493,1744636642142,-151.0,0.00045,120]
[357975494,1744636642169,-152.96136834,0.00045,120]
[357975495,1744636642194,-10000.0,0.00045,30]
[357975496,1744636642219,-215.46384748,0.00045,120]
[357975497,1744636642243,-1106.68720565,0.00045,30]
[357975498,1744636642268,-109164.50103281,0.00045,120]
[357975499,1744636642292,-672.0,0.00045,120]
[357975500,1744636642316,-508.66,0.00045,120]
[357975501,1744636642342,-989.13362777,0.00045,30]
[357975502,1744636642368,-189.51965981,0.00045,120]
[357975503,1744636642393,-326.81569304,0.00045,120]
[357975504,1744636642424,-1000.0,0.00045,120]
[357975505,1744636642451,-245.24550014,0.00045,30]
[357975506,1744636642478,-85190.23996639,0.00045,60]
[357975507,1744636642503,-20000.0,0.00045,120]
[357975508,1744636642531,-300.0,0.00045,30]
[357975509,1744636642560,-728.71936767,0.00045,115]
[357975510,1744636642589,-500.0,0.00045089,120]
[357975511,1744636642621,-7426.02,0.000451,30]
[357975512,1744636642649,-151.0,0.00045136,30]
[357975513,1744636642683,-500.0,0.00045189,120]
[357975514,1744636642711,-553.82568178,0.000452,120]
[357975515,1744636642921,-151.0,0.00045273,30]
[357975516,1744636642949,-500.0,0.00045289,120]
[357975517,1744636642978,-200.0,0.00045318,120]
[357975518,1744636643006,-200.0,0.00045361,120]
[357975519,1744636643039,-500.0,0.00045389,120]
[357975520,1744636643065,-151.0,0.0004541,30]
[357975521,1744636643092,-500.0,0.00045489,120]
[357975522,1744636643119,-378.97730253,0.00045513,120]
[357975523,1744636643144,-151.0,0.00045547,30]
[357975524,1744636643174,-500.0,0.00045589,120]
[357975525,1744636643199,-871.14623238,0.00045618,120]
[357975526,1744636643225,-289.87502645,0.00045684,30]
[357975527,1744636643251,-500.0,0.00045689,120]
[357975528,1744636643279,-200.0,0.00045711,120]
[357975529,1744636643307,-500.0,0.00045789,120]
[357975530,1744636643334,-500.0,0.00045889,120]
[357975531,1744636643362,-200.0,0.00045902,120]
[357975532,1744636643389,-500.0,0.00045989,120]
[357975533,1744636643416,-1599.66906278,0.00046,120]
[357975534,1744636643443,-896.0,0.00046,120]
[357975535,1744636643470,-728.71936767,0.00046,116]
[357975536,1744636643498,-3513.32,0.00046027,120]
[357975537,1744636643529,-200.0,0.0004603,120]
[357975538,1744636643557,-500.0,0.00046089,120]
[357975539,1744636643585,-500.0,0.00046189,120]
[357975540,1744636643611,-597.05144535,0.000462,120]
[357975541,1744636643636,-200.0,0.00046216,120]
[357975542,1744636643663,-200.0,0.00046235,120]
[357975543,1744636643688,-500.0,0.00046289,120]
[357975544,1744636643715,-200.0,0.00046326,120]
[357975545,1744636643742,-500.0,0.00046389,120]
[357975546,1744636643768,-500.0,0.00046489,120]
[357975547,1744636643796,-500.0,0.00046589,120]
[357975548,1744636643823,-500.0,0.00046689,120]
[357975549,1744636643850,-1038.6,0.000467,30]
[357975550,1744636643880,-170.18,0.000467,30]
[357975551,1744636643908,-1038.6,0.000467,30]
[357975552,1744636643935,-500.0,0.00046789,120]
[357975553,1744636643962,-500.0,0.00046889,120]
[357975554,1744636643989,-500.0,0.00046989,120]
[357975555,1744636644016,-7426.02,0.00047,30]
[357975556,1744636644042,-137390.28,0.00047,30]
[357975557,1744636644069,-728.71936767,0.00047,117]
[357975558,1744636644096,-500.0,0.00047089,120]
[357975559,1744636644122,-3513.32,0.00047123,120]
[357975560,1744636644149,-500.0,0.00047189,120]
[357975561,1744636644178,-500.0,0.00047289,120]
[357975562,1744636644206,-200.0,0.00047376,120]
[357975563,1744636644235,-500.0,0.00047389,120]
[357975564,1744636644262,-200.0,0.00047408,120]
[357975565,1744636644289,-500.0,0.00047489,120]
[357975566,1744636644316,-200.0,0.0004754,120]
[357975567,1744636644343,-500.0,0.00047589,120]
[357975568,1744636644370,-500.0,0.00047689,120]
[357975569,1744636644398,-149618.78,0.000477,30]
[357975570,1744636644426,-500.0,0.00047789,120]
[357975571,1744636644454,-308.38668538,0.000478,120]
[357975572,1744636644484,-500.0,0.00047889,120]
[357975573,1744636644510,-364.03008338,0.000479,120]
[357975574,1744636644539,-616.9356,0.000479,120]
[357975575,1744636644567,-500.0,0.00047989,120]
[357975576,1744636644595,-7426.02,0.00048,30]
[357975577,1744636644622,-896.0,0.00048,120]
[357975578,1744636644647,-20000.0,0.00048,120]
[357975579,1744636644675,-728.71936767,0.00048,118]
[357975580,1744636644702,-634.17429116,0.00048089,120]
[357975581,1744636644728,-223.4719,0.000482,120]
[357975582,1744636644757,-3513.32,0.00048219,120]
[357975583,1744636644783,-8571.9655977,0.00048398,120]
[357975584,1744636644811,-300000.0,0.0004844,30]
[357975585,1744636644838,-1038.6,0.000485,30]
[357975586,1744636644866,-170.18,0.000485,30]
[357975587,1744636644895,-7426.02,0.000488,30]
[357975588,1744636644924,-3318.29660212,0.000488,120]
[357975589,1744636644952,-728.71936767,0.00049,119]
[357975590,1744636644978,-251.0,0.0004915,120]
[357975591,1744636645006,-1088.85,0.00049315,120]
[357975592,1744636645031,-1088.85,0.00049315,120]
[357975593,1744636645061,-1088.85,0.00049315,120]
[357975594,1744636645088,-1088.85,0.00049315,120]
[357975595,1744636645114,-1088.85,0.00049315,120]
[357975596,1744636645140,-1088.85,0.00049315,120]
[357975597,1744636645167,-1088.85,0.00049315,120]
[357975598,1744636645193,-1088.85,0.00049315,120]
[357975599,1744636645219,-1088.85,0.00049315,120]
[357975600,1744636645244,-1088.85,0.00049315,120]
[357975601,1744636645269,-1088.85,0.00049315,120]
[357975602,1744636645295,-1088.85,0.00049315,120]
[357975603,1744636645321,-1088.85,0.00049315,120]
[357975604,1744636645349,-1088.85,0.00049315,120]
[357975605,1744636645376,-1088.85,0.00049315,120]
[357975606,1744636645403,-1088.85,0.00049315,120]
[357975607,1744636645428,-1088.85,0.00049315,120]
[357975608,1744636645452,-1088.85,0.00049315,120]
[357975609,1744636645477,-1088.85,0.00049315,120]
[357975610,1744636645636,-1088.85,0.00049315,120]
[357975611,1744636645664,-1088.85,0.00049315,120]
[357975612,1744636645691,-1088.85,0.00049315,120]
[357975613,1744636645716,-1088.85,0.00049315,120]
[357975614,1744636645742,-1089.05942834,0.00049315,120]
[357975615,1744636645771,-3513.32,0.00049315,120]
[357975616,1744636645795,-1000.0,0.00049315,60]
[357975617,1744636645821,-1000.0,0.00049315,60]
[357975618,1744636645848,-1000.0,0.00049315,60]
[357975619,1744636645874,-1000.0,0.00049315,60]
[357975620,1744636645902,-1000.0,0.00049315,60]
[357975621,1744636645929,-1000.0,0.00049315,60]
[357975622,1744636645956,-1000.0,0.00049315,60]
[357975623,1744636645983,-1000.0,0.00049315,60]
[357975624,1744636646009,-1000.0,0.00049315,60]
[357975625,1744636646036,-1000.0,0.00049315,60]
[357975626,1744636646063,-1000.0,0.00049315,60]
[357975627,1744636646088,-1000.0,0.00049315,60]
[357975628,1744636646114,-673.05427856,0.00049315,60]
[357975629,1744636646141,-289.41721896,0.00049315,120]
[357975630,1744636646168,-500.0,0.00049315,120]
[357975631,1744636646195,-500.0,0.00049315,120]
[357975632,1744636646221,-500.0,0.00049315,120]
[357975633,1744636646249,-500.0,0.00049315,120]
[357975634,1744636646276,-500.0,0.00049315,120]
[357975635,1744636646303,-500.0,0.00049315,120]
[357975636,1744636646330,-500.0,0.00049315,120]
[357975637,1744636646357,-617.49098656,0.00049315,120]
[357975638,1744636646385,-164.64609925,0.0004932,120]
[357975639,1744636646411,-164.64609925,0.0004932,120]
[357975640,1744636646440,-164.64609925,0.0004932,120]
[357975641,1744636646468,-164.64609925,0.0004932,120]
[357975642,1744636646495,-164.64609925,0.0004932,120]
[357975643,1744636646523,-164.64609925,0.0004932,120]
[357975644,1744636646554,-164.64609925,0.0004932,120]
[357975645,1744636646581,-164.64609925,0.0004932,120]
[357975646,1744636646608,-164.64609925,0.0004932,120]
[357975647,1744636646636,-164.64609925,0.0004932,120]
[357975648,1744636646662,-164.64609925,0.0004932,120]
[357975649,1744636646690,-164.64609925,0.0004932,120]
[357975650,1744636646719,-164.64609925,0.0004932,120]
[357975651,1744636646746,-164.64609925,0.0004932,120]
[357975652,1744636646772,-164.64609925,0.0004932,120]
[357975653,1744636646799,-164.64609925,0.0004932,120]
[357975654,1744636646827,-164.64609925,0.0004932,120]
[357975655,1744636646853,-164.64609925,0.0004932,120]
[357975656,1744636646878,-164.64609925,0.0004932,120]
[357975657,1744636646906,-164.64,0.0004932,120]
[357975658,1744636646932,-384.17423158,0.0004932,120]
[357975659,1744636646958,-384.17423158,0.0004932,120]
[357975660,1744636646985,-384.17423158,0.0004932,120]
[357975661,1744636647012,-384.17423158,0.0004932,120]
[357975662,1744636647039,-384.17423158,0.0004932,120]
[357975663,1744636647067,-384.17423158,0.0004932,120]
[357975664,1744636647094,-384.17423158,0.0004932,120]
[357975665,1744636647123,-384.17423158,0.0004932,120]
[357975666,1744636647149,-384.17423158,0.0004932,120]
[357975667,1744636647177,-384.17423158,0.0004932,120]
[357975668,1744636647205,-384.17423158,0.0004932,120]
[357975669,1744636647231,-384.17423158,0.0004932,120]
[357975670,1744636647258,-384.17423158,0.0004932,120]
[357975671,1744636647284,-384.17423158,0.0004932,120]
[357975672,1744636647312,-384.17423158,0.0004932,120]
[357975673,1744636647340,-384.17423158,0.0004932,120]
[357975674,1744636647368,-384.17423158,0.0004932,120]
[357975675,1744636647397,-384.17423158,0.0004932,120]
[357975676,1744636647424,-384.17423158,0.0004932,120]
[357975677,1744636647453,-384.17,0.0004932,120]
[357975678,1744636647480,-292.1439927,0.0004932,120]
[357975679,1744636647508,-292.1439927,0.0004932,120]
[357975680,1744636647536,-292.1439927,0.0004932,120]
[357975681,1744636647570,-292.1439927,0.0004932,120]
[357975682,1744636647606,-292.1439927,0.0004932,120]
[357975683,1744636647637,-292.1439927,0.0004932,120]
[357975684,1744636647666,-292.1439927,0.0004932,120]
[357975685,1744636647696,-292.1439927,0.0004932,120]
[357975686,1744636647724,-292.1439927,0.0004932,120]
[357975687,1744636647752,-292.1439927,0.0004932,120]
[357975688,1744636647781,-292.1439927,0.0004932,120]
[357975689,1744636647812,-292.1439927,0.0004932,120]
[357975690,1744636647845,-292.1439927,0.0004932,120]
[357975691,1744636647874,-292.1439927,0.0004932,120]
[357975692,1744636647903,-292.1439927,0.0004932,120]
[357975693,1744636647932,-292.1439927,0.0004932,120]
[357975694,1744636647961,-292.1439927,0.0004932,120]
[357975695,1744636647989,-292.1439927,0.0004932,120]
[357975696,1744636648016,-292.1439927,0.0004932,120]
[357975697,1744636648044,-292.14,0.0004932,120]
[357975698,1744636648070,-681.6693163,0.0004932,120]
[357975699,1744636648096,-681.6693163,0.0004932,120]
[357975700,1744636648122,-681.6693163,0.0004932,120]
[357975701,1744636648148,-681.6693163,0.0004932,120]
[357975702,1744636648175,-681.6693163,0.0004932,120]
[357975703,1744636648201,-681.6693163,0.0004932,120]
[357975704,1744636648227,-681.6693163,0.0004932,120]
[357975705,1744636648415,-681.6693163,0.0004932,120]
[357975706,1744636648476,-681.6693163,0.0004932,120]
[357975707,1744636648502,-681.6693163,0.0004932,120]
[357975708,1744636648531,-681.6693163,0.0004932,120]
[357975709,1744636648559,-681.6693163,0.0004932,120]
[357975710,1744636648584,-681.6693163,0.0004932,120]
[357975711,1744636648612,-681.6693163,0.0004932,120]
[357975712,1744636648638,-681.6693163,0.0004932,120]
[357975713,1744636648663,-681.6693163,0.0004932,120]
[357975714,1744636648689,-681.6693163,0.0004932,120]
[357975715,1744636648715,-681.6693163,0.0004932,120]
[357975716,1744636648744,-681.6693163,0.0004932,120]
[357975717,1744636648771,-681.66,0.0004932,120]
[357975718,1744636648798,-171.4818119,0.0004932,120]
[357975719,1744636648824,-171.4818119,0.0004932,120]
[357975720,1744636648850,-171.4818119,0.0004932,120]
[357975721,1744636648877,-171.48,0.0004932,120]
[357975722,1744636648903,-160.04969111,0.0004932,120]
[357975723,1744636648931,-160.04969111,0.0004932,120]
[357975724,1744636648959,-160.04969111,0.0004932,120]
[357975725,1744636648987,-160.04969111,0.0004932,120]
[357975726,1744636649013,-160.04969111,0.0004932,120]
[357975727,1744636649039,-160.04969111,0.0004932,120]
[357975728,1744636649065,-160.04969111,0.0004932,120]
[357975729,1744636649098,-160.04969111,0.0004932,120]
[357975730,1744636649124,-160.04969111,0.0004932,120]
[357975731,1744636649151,-160.04,0.0004932,120]
[357975732,1744636649180,-10000.0,0.0004999,30]
[357975733,1744636649207,-1323.14,0.0004999,120]
[357975734,1744636649233,-256.61,0.0005,120]
[357975735,1744636649259,-200.0,0.0005,120]
[357975736,1744636649284,-150597.03834226,0.0005,120]
[357975737,1744636649310,-50000.0,0.0005,60]
[357975738,1744636649335,-3818.32470682,0.0005,120]
[357975739,1744636649362,-188.0,0.0005,120]
[357975740,1744636649388,-1625.03497535,0.0005,30]
[357975741,1744636649417,-253.64498058,0.0005,120]
[357975742,1744636649444,-896.0,0.0005,120]
[357975743,1744636649471,-6250.0,0.0005,120]
[357975744,1744636649498,-200.0,0.0005,30]
[357975745,1744636649525,-728.71936767,0.0005,120]
[357975746,1744636649555,-149618.78,0.000503,30]
[357975747,1744636649584,-3513.32,0.0005041,120]
[357975748,1744636649610,-402.0,0.00050813,120]
[357975749,1744636649636,-807.55080642,0.00051,120]
[357975750,1744636649663,-2270.58,0.00051,120]
[357975751,1744636649689,-20000.0,0.00051,120]
[357975752,1744636649716,-3000.0,0.00051,85]
[357975753,1744636649743,-728.71936767,0.00051,120]
[357975754,1744636649768,-3000.0,0.0005101,85]
[357975755,1744636649795,-3000.0,0.0005102,85]
[357975756,1744636649834,-3814.295662,0.0005103,85]
[357975757,1744636649864,-300000.0,0.0005122,30]
[357975758,1744636649894,-3513.32,0.00051506,120]
[357975759,1744636649924,-896.0,0.00052,120]
[357975760,1744636649952,-728.71936767,0.00052,120]
[357975761,1744636649981,-3513.32,0.00052602,120]
[357975762,1744636650009,-728.71936767,0.00053,120]
[357975763,1744636650038,-223.4719,0.000535,120]
[357975764,1744636650067,-3513.32,0.00053698,120]
[357975765,1744636650094,-402.0,0.00053813,120]
[357975766,1744636650122,-1115.38506163,0.00054,120]
[357975767,1744636650149,-679.9796067,0.00054,120]
[357975768,1744636650176,-1304.41917891,0.00054,120]
[357975769,1744636650202,-896.0,0.00054,120]
[357975770,1744636650228,-20000.0,0.00054,120]
[357975771,1744636650254,-728.71936767,0.00054,120]
[357975772,1744636650279,-500000.0,0.0005444,30]
[357975773,1744636650307,-3513.32,0.00054794,120]
[357975774,1744636650333,-1000.0,0.00054794,120]
[357975775,1744636650359,-1000.0,0.00054794,120]
[357975776,1744636650384,-1000.0,0.00054794,120]
[357975777,1744636650411,-1000.0,0.00054794,120]
[357975778,1744636650437,-1000.0,0.00054794,120]
[357975779,1744636650464,-1000.0,0.00054794,120]
[357975780,1744636650490,-1000.0,0.00054794,120]
[357975781,1744636650516,-1000.0,0.00054794,120]
[357975782,1744636650549,-1000.0,0.00054794,120]
[357975783,1744636650577,-1000.0,0.00054794,120]
[357975784,1744636650605,-1000.0,0.00054794,120]
[357975785,1744636650632,-1012.80677166,0.00054794,120]
[357975786,1744636650660,-500.0,0.00054794,30]
[357975787,1744636650687,-500.0,0.00054794,30]
[357975788,1744636650715,-500.0,0.00054794,30]
[357975789,1744636650743,-500.0,0.00054794,30]
[357975790,1744636650770,-500.0,0.00054794,30]
[357975791,1744636650798,-598.52561323,0.00054794,30]
[357975792,1744636650825,-500.0,0.00054794,30]
[357975793,1744636650853,-500.0,0.00054794,30]
[357975794,1744636650882,-500.0,0.00054794,30]
[357975795,1744636650910,-500.0,0.00054794,30]
[357975796,1744636650937,-500.0,0.00054794,30]
[357975797,1744636650963,-500.0,0.00054794,30]
[357975798,1744636650989,-500.0,0.00054794,30]
[357975799,1744636651016,-500.0,0.00054794,30]
[357975800,1744636651219,-500.0,0.00054794,30]
[357975801,1744636651246,-500.0,0.00054794,30]
[357975802,1744636651272,-500.0,0.00054794,30]
[357975803,1744636651298,-500.0,0.00054794,30]
[357975804,1744636651323,-500.0,0.00054794,30]
[357975805,1744636651348,-500.0,0.00054794,30]
[357975806,1744636651375,-500.0,0.00054794,30]
[357975807,1744636651401,-500.0,0.00054794,30]
[357975808,1744636651428,-500.0,0.00054794,30]
[357975809,1744636651453,-151.0,0.00054795,120]
[357975810,1744636651479,-157.648055,0.00054795,120]
[357975811,1744636651950,2231.795,0.00049315,30]
[357975812,1744636652408,6276.84588772,0.00050813,61]
[357975813,1744636660040,1056.79685648,0.00054794,120]
[357975814,1744636660133,2040.02650751,0.00054794,120]
[357975815,1744636662137,35188.0,0.00054,30]
[357975816,1744636742430,2000.0,0.00045436,120]
[357975818,1744636773471,500.0,0.00045436,30]
[357975819,1744636776188,500.0,0.00045436,30]
[357975821,1744636803160,378.0,0.00045436,30]
[357975822,1744636805587,2000.0,0.00045436,120]
[357975824,1744636871874,2000.0,0.00045436,120]
[357975826,1744636944648,151.0,0.00045436,30]
[357975827,1744636989878,1000.0,0.00045436,30]
[357975833,1744637256826,1496.06723055,0.00045201,120]
[357975834,1744637264430,730.55085138,0.00045201,30]
[357975835,1744637269086,180.96696711,0.00045201,120]
[357975836,1744637299760,1946.65768515,0.00045201,120]
[357975837,1744637311648,250.79437568,0.00045201,120]
[357975838,1744637314418,929.74159489,0.00045201,30]
[357975850,1744637317739,647.27369264,0.00045201,120]
[357975851,1744637319788,986.1049779,0.00045201,30]
[357975852,1744637320830,5579.98562418,0.00045201,120]
[357975853,1744637320900,689.62974219,0.00045201,31]
[357975854,1744637321304,1537.92178946,0.00045201,30]
[357975855,1744637321860,339.89813766,0.00045201,120]
[357975856,1744637322704,753.20296534,0.00045201,120]
[357975857,1744637323118,938.57634532,0.00045201,120]
[357975858,1744637323281,257.19412268,0.00045201,30]
[357975859,1744637323661,608.78528585,0.00045201,60]
[357975860,1744637324927,177.0926753,0.00045201,30]
[357975861,1744637326937,1499.48626462,0.00045201,30]
[357975862,1744637328744,632.75783529,0.00045201,120]
[357975863,1744637328779,1214.84688456,0.00045201,120]
[357975864,1744637330110,608.84166165,0.00045201,120]
[357975865,1744637332534,741.03242186,0.00045201,120]